Workbook

Sheet 成绩汇总
A1: 遵义市卫生健康事业单位2023年下半年面向全国公开招引医务人才
A2: 线下笔试、现场考评成绩及进入下一环节人员名单
A3: 准考证号 | B3: 报考单位 | C3: 报考岗位及代码 | D3: 岗位招引数量 | E3: 综合成绩 | J3: 名次 | K3: 是否进入下一环节 | L3: 备注
E4: 线下笔试成绩 | F4: 按20%折算后线下笔试成绩 | G4: 现场考评成绩 | H4: 按80%折算后现场考评成绩 | I4: 总成绩
A5: 202312230128 | B5: 遵义市第一人民医院 | C5: 医学博士01 | D5: 2 | E5: 免试 | G5: 85.33 | I5: 85.33 | J5: 1 | K5: 是 | L5: 博士研究生
A6: 202312230106 | B6: 遵义市第一人民医院 | C6: 血液科医师02 | D6: 1 | J6: 缺考 | K6: 否
A7: 202312230118 | B7: 遵义市第一人民医院 | C7: 消化内科医师03 | D7: 1 | E7: 80.00 | F7: =E7*0.2 -> 16.00 | G7: 79.33 | H7: =G7*0.8 -> 63.46 | I7: =F7+H7 -> 79.46 | J7: 1 | K7: 是
A8: 202312230103 | B8: 遵义市第一人民医院 | C8: 消化内科医师03 | D8: 1 | J8: 缺考 | K8: 否
A9: 202312230110 | B9: 遵义市第一人民医院 | C9: 消化内科医师03 | D9: 1 | J9: 缺考 | K9: 否
A10: 202312230125 | B10: 遵义市第一人民医院 | C10: 消化内科医师03 | D10: 1 | J10: 缺考 | K10: 否
A11: 202312230114 | B11: 遵义市第一人民医院 | C11: 肾脏内科医师04 | D11: 1 | E11: 74.00 | F11: =E11*0.2 -> 14.80 | G11: 78.67 | H11: =G11*0.8 -> 62.94 | I11: =F11+H11 -> 77.74 | J11: 1 | K11: 是
A12: 202312230121 | B12: 遵义市第一人民医院 | C12: 骨科二病区医师05 | D12: 1 | E12: 74.00 | F12: =E12*0.2 -> 14.80 | G12: 85.33 | H12: =G12*0.8 -> 68.26 | I12: =F12+H12 -> 83.06 | J12: 1 | K12: 是
A13: 202312230101 | B13: 遵义市第一人民医院 | C13: 骨科二病区医师05 | D13: 1 | E13: 82.00 | F13: =E13*0.2 -> 16.40 | G13: 83.00 | H13: =G13*0.8 -> 66.40 | I13: =F13+H13 -> 82.80 | J13: 2 | K13: 否
A14: 202312230115 | B14: 遵义市第一人民医院 | C14: 骨科二病区医师05 | D14: 1 | E14: 75.00 | F14: =E14*0.2 -> 15.00 | G14: 81.67 | H14: =G14*0.8 -> 65.34 | I14: =F14+H14 -> 80.34 | J14: 3 | K14: 否
A15: 202312230129 | B15: 遵义市第一人民医院 | C15: 骨科二病区医师05 | D15: 1 | E15: 71.00 | F15: =E15*0.2 -> 14.20 | G15: 80.00 | H15: =G15*0.8 -> 64.00 | I15: =F15+H15 -> 78.20 | J15: 4 | K15: 否
A16: 202312230126 | B16: 遵义市第一人民医院 | C16: 骨科二病区医师05 | D16: 1 | J16: 缺考 | K16: 否
A17: 202312230130 | B17: 遵义市第一人民医院 | C17: 骨科二病区医师05 | D17: 1 | J17: 缺考 | K17: 否
A18: 202312230120 | B18: 遵义市第一人民医院 | C18: 乳甲外科影像医师06 | D18: 1 | E18: 77.00 | F18: =E18*0.2 -> 15.40 | G18: 81.67 | H18: =G18*0.8 -> 65.34 | I18: =F18+H18 -> 80.74 | J18: 1 | K18: 是
A19: 202312230122 | B19: 遵义市妇幼保健院 | C19: 儿童保健科医师01 | D19: 1 | E19: 免试 | G19: =VLOOKUP(A19,[6]Sheet1!$D$4:$G$28,4,0) -> 88.33 | I19: 88.33 | J19: 1 | K19: 是 | L19: 博士研究生
A20: 202312230119 | B20: 遵义市妇幼保健院 | C20: 妇产科体系医师02 | D20: 3 | J20: 缺考 | K20: 否
A21: 202312230116 | B21: 遵义市妇幼保健院 | C21: 小儿外科医师03 | D21: 1 | E21: =VLOOKUP(A21,[1]Sheet1!$C$3:$F$3600,4,0) -> 74.00 | F21: =E21*0.2 -> 14.80 | G21: =VLOOKUP(A21,[6]Sheet1!$D$4:$G$28,4,0) -> 85.17 | H21: =G21*0.8 -> 68.14 | I21: =F21+H21 -> 82.94 | J21: 1 | K21: 是
A22: 202312230218 | B22: 遵义市妇幼保健院 | C22: 急诊重症医师05 | D22: 1 | E22: =VLOOKUP(A22,[1]Sheet1!$C$3:$F$3600,4,0) -> 76.00 | F22: =E22*0.2 -> 15.20 | G22: =VLOOKUP(A22,[6]Sheet1!$D$4:$G$28,4,0) -> 85.00 | H22: =G22*0.8 -> 68.00 | I22: =F22+H22 -> 83.20 | J22: 1 | K22: 是
A23: 202312230203 | B23: 遵义市妇幼保健院 | C23: 急诊重症医师05 | D23: 1 | J23: 缺考 | K23: 否
A24: 202312230124 | B24: 遵义市妇幼保健院 | C24: 药学部工作人员06 | D24: 1 | E24: =VLOOKUP(A24,[1]Sheet1!$C$3:$F$3600,4,0) -> 78.00 | F24: =E24*0.2 -> 15.60 | G24: =VLOOKUP(A24,[6]Sheet1!$D$4:$G$28,4,0) -> 87.67 | H24: =G24*0.8 -> 70.14 | I24: =F24+H24 -> 85.74 | J24: 1 | K24: 是
A25: 202312230123 | B25: 遵义市妇幼保健院 | C25: 药学部工作人员06 | D25: 1 | E25: =VLOOKUP(A25,[1]Sheet1!$C$3:$F$3600,4,0) -> 79.00 | F25: 15.80 | G25: =VLOOKUP(A25,[6]Sheet1!$D$4:$G$28,4,0) -> 86.00 | H25: 68.80 | I25: 84.60 | J25: 2 | K25: 否
A26: 202312230227 | B26: 遵义市妇幼保健院 | C26: 药学部工作人员06 | D26: 1 | E26: =VLOOKUP(A26,[1]Sheet1!$C$3:$F$3600,4,0) -> 77.00 | F26: 15.40 | G26: =VLOOKUP(A26,[6]Sheet1!$D$4:$G$28,4,0) -> 86.33 | H26: 69.06 | I26: 84.46 | J26: 3 | K26: 否
A27: 202312230104 | B27: 遵义市妇幼保健院 | C27: 药学部工作人员06 | D27: 1 | E27: =VLOOKUP(A27,[1]Sheet1!$C$3:$F$3600,4,0) -> 80.00 | F27: 16.00 | G27: =VLOOKUP(A27,[6]Sheet1!$D$4:$G$28,4,0) -> 84.33 | H27: 67.46 | I27: 83.46 | J27: 4 | K27: 否
A28: 202312230117 | B28: 遵义市妇幼保健院 | C28: 药学部工作人员06 | D28: 1 | E28: =VLOOKUP(A28,[1]Sheet1!$C$3:$F$3600,4,0) -> 72.00 | F28: 14.40 | G28: =VLOOKUP(A28,[6]Sheet1!$D$4:$G$28,4,0) -> 84.67 | H28: 67.74 | I28: 82.14 | J28: 5 | K28: 否
A29: 202312230127 | B29: 遵义市妇幼保健院 | C29: 药学部工作人员06 | D29: 1 | E29: =VLOOKUP(A29,[1]Sheet1!$C$3:$F$3600,4,0) -> 77.00 | F29: 15.40 | G29: =VLOOKUP(A29,[6]Sheet1!$D$4:$G$28,4,0) -> 83.33 | H29: 66.66 | I29: 82.06 | J29: 6 | K29: 否
A30: 202312230108 | B30: 遵义市妇幼保健院 | C30: 药学部工作人员06 | D30: 1 | E30: =VLOOKUP(A30,[1]Sheet1!$C$3:$F$3600,4,0) -> 77.00 | F30: 15.40 | G30: =VLOOKUP(A30,[6]Sheet1!$D$4:$G$28,4,0) -> 83.33 | H30: 66.66 | I30: 82.06 | J30: 6 | K30: 否
A31: 202312230109 | B31: 遵义市妇幼保健院 | C31: 药学部工作人员06 | D31: 1 | E31: =VLOOKUP(A31,[1]Sheet1!$C$3:$F$3600,4,0) -> 76.00 | F31: 15.20 | G31: =VLOOKUP(A31,[6]Sheet1!$D$4:$G$28,4,0) -> 83.33 | H31: 66.66 | I31: 81.86 | J31: 8 | K31: 否
A32: 202312230111 | B32: 遵义市妇幼保健院 | C32: 药学部工作人员06 | D32: 1 | E32: =VLOOKUP(A32,[1]Sheet1!$C$3:$F$3600,4,0) -> 76.00 | F32: 15.20 | G32: =VLOOKUP(A32,[6]Sheet1!$D$4:$G$28,4,0) -> 83.33 | H32: 66.66 | I32: 81.86 | J32: 8 | K32: 否
A33: 202312230212 | B33: 遵义市妇幼保健院 | C33: 药学部工作人员06 | D33: 1 | E33: =VLOOKUP(A33,[1]Sheet1!$C$3:$F$3600,4,0) -> 70.00 | F33: 14.00 | G33: =VLOOKUP(A33,[6]Sheet1!$D$4:$G$28,4,0) -> 82.67 | H33: 66.14 | I33: 80.14 | J33: 10 | K33: 否
A34: 202312230207 | B34: 遵义市妇幼保健院 | C34: 药学部工作人员06 | D34: 1 | E34: =VLOOKUP(A34,[1]Sheet1!$C$3:$F$3600,4,0) -> 72.00 | F34: 14.40 | G34: =VLOOKUP(A34,[6]Sheet1!$D$4:$G$28,4,0) -> 82.00 | H34: 65.60 | I34: 80.00 | J34: 11 | K34: 否
A35: 202312230112 | B35: 遵义市妇幼保健院 | C35: 药学部工作人员06 | D35: 1 | E35: =VLOOKUP(A35,[1]Sheet1!$C$3:$F$3600,4,0) -> 69.00 | F35: 13.80 | G35: =VLOOKUP(A35,[6]Sheet1!$D$4:$G$28,4,0) -> 82.67 | H35: 66.14 | I35: 79.94 | J35: 12 | K35: 否
A36: 202312230211 | B36: 遵义市妇幼保健院 | C36: 药学部工作人员06 | D36: 1 | E36: =VLOOKUP(A36,[1]Sheet1!$C$3:$F$3600,4,0) -> 73.00 | F36: 14.60 | G36: =VLOOKUP(A36,[6]Sheet1!$D$4:$G$28,4,0) -> 81.33 | H36: 65.06 | I36: 79.66 | J36: 12 | K36: 否
A37: 202312230228 | B37: 遵义市妇幼保健院 | C37: 药学部工作人员06 | D37: 1 | E37: =VLOOKUP(A37,[1]Sheet1!$C$3:$F$3600,4,0) -> 74.00 | F37: 14.80 | G37: =VLOOKUP(A37,[6]Sheet1!$D$4:$G$28,4,0) -> 79.67 | H37: 63.74 | I37: 78.54 | J37: 14 | K37: 否
A38: 202312230217 | B38: 遵义市妇幼保健院 | C38: 药学部工作人员06 | D38: 1 | E38: =VLOOKUP(A38,[1]Sheet1!$C$3:$F$3600,4,0) -> 68.00 | F38: 13.60 | G38: =VLOOKUP(A38,[6]Sheet1!$D$4:$G$28,4,0) -> 80.00 | H38: 64.00 | I38: 77.60 | J38: 15 | K38: 否
A39: 202312230105 | B39: 遵义市妇幼保健院 | C39: 药学部工作人员06 | D39: 1 | E39: =VLOOKUP(A39,[1]Sheet1!$C$3:$F$3600,4,0) -> 68.00 | F39: 13.60 | G39: =VLOOKUP(A39,[6]Sheet1!$D$4:$G$28,4,0) -> 74.33 | H39: 59.46 | I39: 73.06 | J39: 16 | K39: 否
A40: 202312230107 | B40: 遵义市妇幼保健院 | C40: 药学部工作人员06 | D40: 1 | E40: =VLOOKUP(A40,[1]Sheet1!$C$3:$F$3600,4,0) -> 71.00 | F40: 14.20 | G40: =VLOOKUP(A40,[6]Sheet1!$D$4:$G$28,4,0) -> 缺考 | H40: 缺考 | I40: 14.20 | J40: 17 | K40: 否
A41: 202312230102 | B41: 遵义市妇幼保健院 | C41: 药学部工作人员06 | D41: 1 | J41: 缺考 | K41: 否
A42: 202312230113 | B42: 遵义市妇幼保健院 | C42: 药学部工作人员06 | D42: 1 | J42: 缺考 | K42: 否
A43: 202312230225 | B43: 遵义市妇幼保健院 | C43: 药学部工作人员06 | D43: 1 | J43: 缺考 | K43: 否
A44: 202312230226 | B44: 遵义市中医院 | C44: 口腔科医师02 | D44: 1 | E44: =VLOOKUP(A44,[1]Sheet1!$C$3:$F$3600,4,0) -> 70.00 | F44: =E44*0.2 -> 14.00 | G44: =VLOOKUP(A44,[2]Sheet1!$D$4:$G$31,4,0) -> 82.00 | H44: =G44*0.8 -> 65.60 | I44: =F44+H44 -> 79.60 | J44: 1 | K44: 是
A45: 202312230221 | B45: 遵义市中医院 | C45: 口腔科医师02 | D45: 1 | E45: =VLOOKUP(A45,[1]Sheet1!$C$3:$F$3600,4,0) -> 73.00 | F45: =E45*0.2 -> 14.60 | G45: =VLOOKUP(A45,[2]Sheet1!$D$4:$G$31,4,0) -> 79.67 | H45: =G45*0.8 -> 63.74 | I45: =F45+H45 -> 78.34 | J45: 2 | K45: 否
A46: 202312230223 | B46: 遵义市中医院 | C46: 口腔科医师02 | D46: 1 | E46: =VLOOKUP(A46,[1]Sheet1!$C$3:$F$3600,4,0) -> 70.00 | F46: =E46*0.2 -> 14.00 | G46: =VLOOKUP(A46,[2]Sheet1!$D$4:$G$31,4,0) -> 79.67 | H46: =G46*0.8 -> 63.74 | I46: =F46+H46 -> 77.74 | J46: 3 | K46: 否
A47: 202312230210 | B47: 遵义市中医院 | C47: 泌尿外科医师03 | D47: 1 | E47: =VLOOKUP(A47,[1]Sheet1!$C$3:$F$3600,4,0) -> 79.00 | F47: =E47*0.2 -> 15.80 | G47: =VLOOKUP(A47,[2]Sheet1!$D$4:$G$31,4,0) -> 81.33 | H47: =G47*0.8 -> 65.06 | I47: =F47+H47 -> 80.86 | J47: 1 | K47: 是
A48: 202312230213 | B48: 遵义市中医院 | C48: 泌尿外科医师03 | D48: 1 | E48: =VLOOKUP(A48,[1]Sheet1!$C$3:$F$3600,4,0) -> 72.00 | F48: =E48*0.2 -> 14.40 | G48: =VLOOKUP(A48,[2]Sheet1!$D$4:$G$31,4,0) -> 82.33 | H48: =G48*0.8 -> 65.86 | I48: =F48+H48 -> 80.26 | J48: 2 | K48: 否
A49: 202312230216 | B49: 遵义市中医院 | C49: 泌尿外科医师03 | D49: 1 | J49: 缺考 | K49: 否
A50: 202312230222 | B50: 遵义市中医院 | C50: 肛肠科医师04 | D50: 1 | E50: =VLOOKUP(A50,[1]Sheet1!$C$3:$F$3600,4,0) -> 86.00 | F50: =E50*0.2 -> 17.20 | G50: =VLOOKUP(A50,[2]Sheet1!$D$4:$G$31,4,0) -> 82.67 | H50: =G50*0.8 -> 66.14 | I50: =F50+H50 -> 83.34 | J50: 1 | K50: 是
A51: 202312230229 | B51: 遵义市中医院 | C51: 肛肠科医师04 | D51: 1 | E51: =VLOOKUP(A51,[1]Sheet1!$C$3:$F$3600,4,0) -> 78.00 | F51: 15.60 | G51: =VLOOKUP(A51,[2]Sheet1!$D$4:$G$31,4,0) -> 81.33 | H51: 65.06 | I51: 80.66 | J51: 2 | K51: 否
A52: 202312230215 | B52: 遵义市中医院 | C52: 肛肠科医师04 | D52: 1 | E52: =VLOOKUP(A52,[1]Sheet1!$C$3:$F$3600,4,0) -> 68.00 | F52: 13.60 | G52: =VLOOKUP(A52,[2]Sheet1!$D$4:$G$31,4,0) -> 79.67 | H52: 63.74 | I52: 77.34 | J52: 3 | K52: 否
A53: 202312230224 | B53: 遵义市中医院 | C53: 康复科医师06 | D53: 1 | E53: =VLOOKUP(A53,[1]Sheet1!$C$3:$F$3600,4,0) -> 73.00 | F53: 14.60 | G53: =VLOOKUP(A53,[2]Sheet1!$D$4:$G$31,4,0) -> 78.00 | H53: 62.40 | I53: 77.00 | J53: 1 | K53: 是
A54: 202312230214 | B54: 遵义市中医院 | C54: 医务部工作人员07 | D54: 1 | E54: =VLOOKUP(A54,[1]Sheet1!$C$3:$F$3600,4,0) -> 80.00 | F54: 16.00 | G54: =VLOOKUP(A54,[2]Sheet1!$D$4:$G$31,4,0) -> 83.00 | H54: 66.40 | I54: 82.40 | J54: 1 | K54: 是
A55: 202312230230 | B55: 遵义市中医院 | C55: 医务部工作人员07 | D55: 1 | E55: =VLOOKUP(A55,[1]Sheet1!$C$3:$F$3600,4,0) -> 75.00 | F55: 15.00 | G55: =VLOOKUP(A55,[2]Sheet1!$D$4:$G$31,4,0) -> 81.33 | H55: 65.06 | I55: 80.06 | J55: 2 | K55: 否
A56: 202312230204 | B56: 遵义市中医院 | C56: 医务部工作人员07 | D56: 1 | E56: =VLOOKUP(A56,[1]Sheet1!$C$3:$F$3600,4,0) -> 73.00 | F56: 14.60 | G56: =VLOOKUP(A56,[2]Sheet1!$D$4:$G$31,4,0) -> 77.33 | H56: 61.86 | I56: 76.46 | J56: 3 | K56: 否
A57: 202312230308 | B57: 遵义市中医院 | C57: 人力资源部工作人员09 | D57: 1 | E57: =VLOOKUP(A57,[1]Sheet1!$C$3:$F$3600,4,0) -> 76.00 | F57: 15.20 | G57: =VLOOKUP(A57,[2]Sheet1!$D$4:$G$31,4,0) -> 84.33 | H57: 67.46 | I57: 82.66 | J57: 1 | K57: 是
A58: 202312230324 | B58: 遵义市中医院 | C58: 人力资源部工作人员09 | D58: 1 | E58: =VLOOKUP(A58,[1]Sheet1!$C$3:$F$3600,4,0) -> 83.00 | F58: 16.60 | G58: =VLOOKUP(A58,[2]Sheet1!$D$4:$G$31,4,0) -> 80.00 | H58: 64.00 | I58: 80.60 | J58: 2 | K58: 否
A59: 202312230205 | B59: 遵义市中医院 | C59: 人力资源部工作人员09 | D59: 1 | E59: =VLOOKUP(A59,[1]Sheet1!$C$3:$F$3600,4,0) -> 84.00 | F59: 16.80 | G59: =VLOOKUP(A59,[2]Sheet1!$D$4:$G$31,4,0) -> 79.67 | H59: 63.74 | I59: 80.54 | J59: 3 | K59: 否
A60: 202312230202 | B60: 遵义市中医院 | C60: 人力资源部工作人员09 | D60: 1 | E60: =VLOOKUP(A60,[1]Sheet1!$C$3:$F$3600,4,0) -> 83.00 | F60: 16.60 | G60: =VLOOKUP(A60,[2]Sheet1!$D$4:$G$31,4,0) -> 79.67 | H60: 63.74 | I60: 80.34 | J60: 4 | K60: 否
A61: 202312230220 | B61: 遵义市中医院 | C61: 人力资源部工作人员09 | D61: 1 | E61: =VLOOKUP(A61,[1]Sheet1!$C$3:$F$3600,4,0) -> 72.00 | F61: 14.40 | G61: =VLOOKUP(A61,[2]Sheet1!$D$4:$G$31,4,0) -> 82.00 | H61: 65.60 | I61: 80.00 | J61: 5 | K61: 否
A62: 202312230321 | B62: 遵义市中医院 | C62: 人力资源部工作人员09 | D62: 1 | E62: =VLOOKUP(A62,[1]Sheet1!$C$3:$F$3600,4,0) -> 81.00 | F62: 16.20 | G62: =VLOOKUP(A62,[2]Sheet1!$D$4:$G$31,4,0) -> 79.67 | H62: 63.74 | I62: 79.94 | J62: 6 | K62: 否
A63: 202312230201 | B63: 遵义市中医院 | C63: 人力资源部工作人员09 | D63: 1 | E63: =VLOOKUP(A63,[1]Sheet1!$C$3:$F$3600,4,0) -> 75.00 | F63: 15.00 | G63: =VLOOKUP(A63,[2]Sheet1!$D$4:$G$31,4,0) -> 81.00 | H63: 64.80 | I63: 79.80 | J63: 7 | K63: 否
A64: 202312230219 | B64: 遵义市中医院 | C64: 人力资源部工作人员09 | D64: 1 | E64: =VLOOKUP(A64,[1]Sheet1!$C$3:$F$3600,4,0) -> 82.00 | F64: 16.40 | G64: =VLOOKUP(A64,[2]Sheet1!$D$4:$G$31,4,0) -> 78.67 | H64: 62.94 | I64: 79.34 | J64: 8 | K64: 否
A65: 202312230206 | B65: 遵义市中医院 | C65: 人力资源部工作人员09 | D65: 1 | E65: =VLOOKUP(A65,[1]Sheet1!$C$3:$F$3600,4,0) -> 74.00 | F65: 14.80 | G65: =VLOOKUP(A65,[2]Sheet1!$D$4:$G$31,4,0) -> 80.00 | H65: 64.00 | I65: 78.80 | J65: 9 | K65: 否
A66: 202312230322 | B66: 遵义市中医院 | C66: 人力资源部工作人员09 | D66: 1 | E66: =VLOOKUP(A66,[1]Sheet1!$C$3:$F$3600,4,0) -> 71.00 | F66: 14.20 | G66: =VLOOKUP(A66,[2]Sheet1!$D$4:$G$31,4,0) -> 78.67 | H66: 62.94 | I66: 77.14 | J66: 10 | K66: 否
A67: 202312230208 | B67: 遵义市中医院 | C67: 人力资源部工作人员09 | D67: 1 | E67: =VLOOKUP(A67,[1]Sheet1!$C$3:$F$3600,4,0) -> 67.00 | F67: 13.40 | G67: =VLOOKUP(A67,[2]Sheet1!$D$4:$G$31,4,0) -> 79.33 | H67: 63.46 | I67: 76.86 | J67: 11 | K67: 否
A68: 202312230317 | B68: 遵义市中医院 | C68: 人力资源部工作人员09 | D68: 1 | E68: =VLOOKUP(A68,[1]Sheet1!$C$3:$F$3600,4,0) -> 67.00 | F68: 13.40 | G68: =VLOOKUP(A68,[2]Sheet1!$D$4:$G$31,4,0) -> 79.33 | H68: 63.46 | I68: 76.86 | J68: 11 | K68: 否
A69: 202312230209 | B69: 遵义市中医院 | C69: 人力资源部工作人员09 | D69: 1 | E69: =VLOOKUP(A69,[1]Sheet1!$C$3:$F$3600,4,0) -> 65.00 | F69: 13.00 | G69: =VLOOKUP(A69,[2]Sheet1!$D$4:$G$31,4,0) -> 79.33 | H69: 63.46 | I69: 76.46 | J69: 13 | K69: 否
A70: 202312230310 | B70: 遵义市中医院 | C70: 人力资源部工作人员09 | D70: 1 | E70: =VLOOKUP(A70,[1]Sheet1!$C$3:$F$3600,4,0) -> 65.00 | F70: 13.00 | G70: =VLOOKUP(A70,[2]Sheet1!$D$4:$G$31,4,0) -> 79.00 | H70: 63.20 | I70: 76.20 | J70: 14 | K70: 否
A71: 202312230328 | B71: 遵义市中医院 | C71: 人力资源部工作人员09 | D71: 1 | J71: 缺考 | K71: 否
A72: 202312230315 | B72: 遵义市传染病医院（遵义市第四人民医院） | C72: 内科医师01 | D72: 4 | J72: 缺考 | K72: 否
A73: 202312230313 | B73: 遵义市传染病医院（遵义市第四人民医院） | C73: 检验师05 | D73: 1 | E73: =VLOOKUP(A73,[1]Sheet1!$C$3:$F$3600,4,0) -> 66.00 | F73: =E73*0.2 -> 13.20 | G73: =VLOOKUP(A73,[4]Sheet1!$D$4:$G$9,4,0) -> 74.33 | H73: =G73*0.8 -> 59.46 | I73: =F73+H73 -> 72.66 | J73: 1 | K73: 是
A74: 202312230312 | B74: 遵义市传染病医院（遵义市第四人民医院） | C74: 感染科医师07 | D74: 4 | E74: =VLOOKUP(A74,[1]Sheet1!$C$3:$F$3600,4,0) -> 58.00 | F74: =E74*0.2 -> 11.60 | G74: =VLOOKUP(A74,[4]Sheet1!$D$4:$G$9,4,0) -> 84.67 | H74: =G74*0.8 -> 67.74 | I74: =F74+H74 -> 79.34 | J74: 1 | K74: 是
A75: 202312230301 | B75: 遵义市传染病医院（遵义市第四人民医院） | C75: 重症医学科医师08 | D75: 1 | E75: =VLOOKUP(A75,[1]Sheet1!$C$3:$F$3600,4,0) -> 60.00 | F75: =E75*0.2 -> 12.00 | G75: =VLOOKUP(A75,[4]Sheet1!$D$4:$G$9,4,0) -> 80.67 | H75: =G75*0.8 -> 64.54 | I75: =F75+H75 -> 76.54 | J75: 1 | K75: 是
A76: 202312230330 | B76: 遵义市传染病医院（遵义市第四人民医院） | C76: 康复科医师09 | D76: 1 | E76: =VLOOKUP(A76,[1]Sheet1!$C$3:$F$3600,4,0) -> 64.00 | F76: =E76*0.2 -> 12.80 | G76: =VLOOKUP(A76,[4]Sheet1!$D$4:$G$9,4,0) -> 80.67 | H76: =G76*0.8 -> 64.54 | I76: =F76+H76 -> 77.34 | J76: 1 | K76: 是
A77: 202312230311 | B77: 遵义市传染病医院（遵义市第四人民医院） | C77: 康复科医师09 | D77: 1 | J77: 缺考 | K77: 否
A78: 202312230318 | B78: 遵义市精神专科医院 | C78: 护士03 | D78: 3 | E78: =VLOOKUP(A78,[1]Sheet1!$C$3:$F$3600,4,0) -> 79.00 | F78: =E78*0.2 -> 15.80 | G78: =VLOOKUP(A78,[3]Sheet1!$D$4:$G$9,4,0) -> 79.67 | H78: =G78*0.8 -> 63.74 | I78: =F78+H78 -> 79.54 | J78: 1 | K78: 是
A79: 202312230306 | B79: 遵义市精神专科医院 | C79: 护士03 | D79: 3 | J79: 缺考 | K79: 否
A80: 202312230319 | B80: 遵义市精神专科医院 | C80: 财务科工作人员05 | D80: 1 | E80: =VLOOKUP(A80,[1]Sheet1!$C$3:$F$3600,4,0) -> 65.00 | F80: =E80*0.2 -> 13.00 | G80: =VLOOKUP(A80,[3]Sheet1!$D$4:$G$9,4,0) -> 78.67 | H80: =G80*0.8 -> 62.94 | I80: =F80+H80 -> 75.94 | J80: 1 | K80: 是
A81: 202312230314 | B81: 遵义市精神专科医院 | C81: 精神科住院医师06 | D81: 3 | E81: =VLOOKUP(A81,[1]Sheet1!$C$3:$F$3600,4,0) -> 72.00 | F81: =E81*0.2 -> 14.40 | G81: =VLOOKUP(A81,[3]Sheet1!$D$4:$G$9,4,0) -> 79.67 | H81: =G81*0.8 -> 63.74 | I81: =F81+H81 -> 78.14 | J81: 1 | K81: 是
A82: 202312230309 | B82: 遵义市精神专科医院 | C82: 心电图医师10 | D82: 1 | E82: =VLOOKUP(A82,[1]Sheet1!$C$3:$F$3600,4,0) -> 74.00 | F82: =E82*0.2 -> 14.80 | G82: =VLOOKUP(A82,[3]Sheet1!$D$4:$G$9,4,0) -> 84.67 | H82: =G82*0.8 -> 67.74 | I82: =F82+H82 -> 82.54 | J82: 1 | K82: 是
A83: 202312230329 | B83: 遵义市精神专科医院 | C83: 心电图医师10 | D83: 1 | E83: =VLOOKUP(A83,[1]Sheet1!$C$3:$F$3600,4,0) -> 71.00 | F83: =E83*0.2 -> 14.20 | G83: =VLOOKUP(A83,[3]Sheet1!$D$4:$G$9,4,0) -> 83.00 | H83: =G83*0.8 -> 66.40 | I83: =F83+H83 -> 80.60 | J83: 2 | K83: 否
A84: 202312230323 | B84: 贵州航天医院 | C84: 骨科医师01 | D84: 2 | E84: =VLOOKUP(A84,[1]Sheet1!$C$3:$F$3600,4,0) -> 77.00 | F84: =E84*0.2 -> 15.40 | G84: =VLOOKUP(A84,[5]Sheet2!$D$1:$G$12,4,0) -> 82.33 | H84: =G84*0.8 -> 65.86 | I84: =F84+H84 -> 81.26 | J84: 1 | K84: 是
A85: 202312230302 | B85: 贵州航天医院 | C85: 骨科医师01 | D85: 2 | J85: 缺考 | K85: 否
A86: 202312230320 | B86: 贵州航天医院 | C86: 神经外科医师02 | D86: 1 | E86: =VLOOKUP(A86,[1]Sheet1!$C$3:$F$3600,4,0) -> 68.00 | F86: =E86*0.2 -> 13.60 | G86: =VLOOKUP(A86,[5]Sheet2!$D$1:$G$12,4,0) -> 75.67 | H86: =G86*0.8 -> 60.54 | I86: =F86+H86 -> 74.14 | J86: 1 | K86: 是
A87: 202312230304 | B87: 贵州航天医院 | C87: 重症医学科医师03 | D87: 1 | E87: =VLOOKUP(A87,[1]Sheet1!$C$3:$F$3600,4,0) -> 83.00 | F87: 16.60 | G87: =VLOOKUP(A87,[5]Sheet2!$D$1:$G$12,4,0) -> 86.67 | H87: 69.34 | I87: 85.94 | J87: 1 | K87: 是
A88: 202312230316 | B88: 贵州航天医院 | C88: 重症医学科医师03 | D88: 1 | E88: =VLOOKUP(A88,[1]Sheet1!$C$3:$F$3600,4,0) -> 68.00 | F88: 13.60 | G88: =VLOOKUP(A88,[5]Sheet2!$D$1:$G$12,4,0) -> 83.00 | H88: 66.40 | I88: 80.00 | J88: 2 | K88: 否
A89: 202312230326 | B89: 贵州航天医院 | C89: 重症医学科医师03 | D89: 1 | E89: =VLOOKUP(A89,[1]Sheet1!$C$3:$F$3600,4,0) -> 79.00 | F89: 15.80 | G89: =VLOOKUP(A89,[5]Sheet2!$D$1:$G$12,4,0) -> 79.67 | H89: 63.74 | I89: 79.54 | J89: 3 | K89: 否
A90: 202312230303 | B90: 贵州航天医院 | C90: 眼科医师05 | D90: 1 | E90: =VLOOKUP(A90,[1]Sheet1!$C$3:$F$3600,4,0) -> 76.00 | F90: 15.20 | G90: =VLOOKUP(A90,[5]Sheet2!$D$1:$G$12,4,0) -> 80.33 | H90: 64.26 | I90: 79.46 | J90: 1 | K90: 是
A91: 202312230429 | B91: 贵州航天医院 | C91: 儿科医师07 | D91: 1 | E91: =VLOOKUP(A91,[1]Sheet1!$C$3:$F$3600,4,0) -> 72.00 | F91: 14.40 | G91: =VLOOKUP(A91,[5]Sheet2!$D$1:$G$12,4,0) -> 74.67 | H91: 59.74 | I91: 74.14 | J91: 1 | K91: 是
A92: 202312230305 | B92: 贵州航天医院 | C92: 胸外科科研助理10 | D92: 2 | J92: 缺考 | K92: 否
A93: 202312230307 | B93: 贵州航天医院 | C93: 胸外科科研助理10 | D93: 2 | J93: 缺考 | K93: 否
A94: 202312230327 | B94: 贵州航天医院 | C94: 妇科科研助理11 | D94: 1 | E94: =VLOOKUP(A94,[1]Sheet1!$C$3:$F$3600,4,0) -> 68.00 | F94: =E94*0.2 -> 13.60 | G94: =VLOOKUP(A94,[5]Sheet2!$D$1:$G$12,4,0) -> 84.00 | H94: =G94*0.8 -> 67.20 | I94: =F94+H94 -> 80.80 | J94: 1 | K94: 是
A95: 202312230325 | B95: 贵州航天医院 | C95: 妇科科研助理11 | D95: 1 | E95: =VLOOKUP(A95,[1]Sheet1!$C$3:$F$3600,4,0) -> 73.00 | F95: =E95*0.2 -> 14.60 | G95: =VLOOKUP(A95,[5]Sheet2!$D$1:$G$12,4,0) -> 82.67 | H95: =G95*0.8 -> 66.14 | I95: =F95+H95 -> 80.74 | J95: 2 | K95: 否
A96: 202312230408 | B96: 遵义市疾病预防控制中心 | C96: 检验检测01 | D96: 1 | E96: 免试 | G96: 84.00 | I96: 84.00 | J96: 1 | K96: 是 | L96: 博士研究生
A97: 202312230428 | B97: 红花岗区人民医院 | C97: 急诊科医师01 | D97: 2 | E97: 78.00 | F97: =E97*0.2 -> 15.60 | G97: 73.67 | H97: =G97*0.8 -> 58.94 | I97: =F97+H97 -> 74.54 | J97: 1 | K97: 是
A98: 202312230421 | B98: 红花岗区人民医院 | C98: 急诊科医师01 | D98: 2 | E98: 71.00 | F98: 14.20 | G98: 75.33 | H98: 60.26 | I98: 74.46 | J98: 2 | K98: 是
A99: 202312230420 | B99: 红花岗区人民医院 | C99: 急诊科医师01 | D99: 2 | E99: 72.00 | F99: 14.40 | G99: 74.00 | H99: 59.20 | I99: 73.60 | J99: 3 | K99: 否
A100: 202312230424 | B100: 红花岗区人民医院 | C100: 急诊科医师01 | D100: 2 | E100: 67.00 | F100: 13.40 | G100: 74.00 | H100: 59.20 | I100: 72.60 | J100: 4 | K100: 否
A101: 202312230419 | B101: 红花岗区人民医院 | C101: 急诊科医师01 | D101: 2 | E101: 73.00 | F101: 14.60 | G101: 71.33 | H101: 57.06 | I101: 71.66 | J101: 5 | K101: 否
A102: 202312230418 | B102: 红花岗区人民医院 | C102: 急诊科医师01 | D102: 2 | E102: 69.00 | F102: 13.80 | G102: 72.00 | H102: 57.60 | I102: 71.40 | J102: 6 | K102: 否
A103: 202312230416 | B103: 红花岗区人民医院 | C103: 急诊科医师01 | D103: 2 | E103: 70.00 | F103: 14.00 | G103: 70.00 | H103: 56.00 | I103: 70.00 | J103: 7 | K103: 否
A104: 202312230409 | B104: 红花岗区人民医院 | C104: 急诊科医师01 | D104: 2 | E104: 63.00 | F104: 12.60 | G104: 71.67 | H104: 57.34 | I104: 69.94 | J104: 8 | K104: 否
A105: 202312230411 | B105: 红花岗区人民医院 | C105: 急诊科医师01 | D105: 2 | E105: 63.00 | F105: 12.60 | G105: 71.00 | H105: 56.80 | I105: 69.40 | J105: 9 | K105: 否
A106: 202312230415 | B106: 红花岗区人民医院 | C106: 急诊科医师01 | D106: 2 | E106: 62.00 | F106: 12.40 | G106: 70.67 | H106: 56.54 | I106: 68.94 | J106: 10 | K106: 否
A107: 202312230406 | B107: 红花岗区人民医院 | C107: 急诊科医师01 | D107: 2 | E107: 71.00 | F107: 14.20 | G107: 67.67 | H107: 54.14 | I107: 68.34 | J107: 11 | K107: 否
A108: 202312230417 | B108: 红花岗区人民医院 | C108: 急诊科医师01 | D108: 2 | E108: 60.00 | F108: 12.00 | G108: 69.67 | H108: 55.74 | I108: 67.74 | J108: 12 | K108: 否
A109: 202312230402 | B109: 红花岗区人民医院 | C109: 急诊科医师01 | D109: 2 | E109: 55.00 | F109: 11.00 | G109: 69.33 | H109: 55.46 | I109: 66.46 | J109: 13 | K109: 否
A110: 202312230430 | B110: 红花岗区人民医院 | C110: 急诊科医师01 | D110: 2 | E110: 66.00 | F110: 13.20 | G110: 66.00 | H110: 52.80 | I110: 66.00 | J110: 14 | K110: 否
A111: 202312230412 | B111: 红花岗区人民医院 | C111: 急诊科医师01 | D111: 2 | E111: 55.00 | F111: 11.00 | G111: 68.33 | H111: 54.66 | I111: 65.66 | J111: 15 | K111: 否
A112: 202312230426 | B112: 红花岗区人民医院 | C112: 急诊科医师01 | D112: 2 | E112: 60.00 | F112: 12.00 | G112: 66.33 | H112: 53.06 | I112: 65.06 | J112: 16 | K112: 否
A113: 202312230413 | B113: 红花岗区人民医院 | C113: 急诊科医师01 | D113: 2 | E113: 66.00 | F113: 13.20 | G113: 62.67 | H113: 50.14 | I113: 63.34 | J113: 17 | K113: 否
A114: 202312230403 | B114: 红花岗区人民医院 | C114: 急诊科医师01 | D114: 2 | J114: 缺考 | K114: 否
A115: 202312230414 | B115: 红花岗区人民医院 | C115: 急诊科医师01 | D115: 2 | J115: 缺考 | K115: 否
A116: 202312230427 | B116: 红花岗区人民医院 | C116: 骨外科医师02 | D116: 1 | E116: 89.00 | F116: 17.80 | G116: 78.67 | H116: 62.94 | I116: 80.74 | J116: 1 | K116: 是
A117: 202312230405 | B117: 红花岗区人民医院 | C117: 骨外科医师02 | D117: 1 | E117: 69.00 | F117: 13.80 | G117: 73.67 | H117: 58.94 | I117: 72.74 | J117: 2 | K117: 否
A118: 202312230520 | B118: 红花岗区人民医院 | C118: 骨外科医师02 | D118: 1 | E118: 72.00 | F118: 14.40 | G118: 72.67 | H118: 58.14 | I118: 72.54 | J118: 3 | K118: 否
A119: 202312230524 | B119: 红花岗区人民医院 | C119: 骨外科医师02 | D119: 1 | E119: 73.00 | F119: 14.60 | G119: 71.67 | H119: 57.34 | I119: 71.94 | J119: 4 | K119: 否
A120: 202312230407 | B120: 红花岗区人民医院 | C120: 骨外科医师02 | D120: 1 | E120: 84.00 | F120: 16.80 | G120: 68.67 | H120: 54.94 | I120: 71.74 | J120: 5 | K120: 否
A121: 202312230518 | B121: 红花岗区人民医院 | C121: 骨外科医师02 | D121: 1 | E121: 63.00 | F121: 12.60 | G121: 68.67 | H121: 54.94 | I121: 67.54 | J121: 6 | K121: 否
A122: 202312230422 | B122: 红花岗区人民医院 | C122: 骨外科医师02 | D122: 1 | E122: 73.00 | F122: 14.60 | G122: 66.00 | H122: 52.80 | I122: 67.40 | J122: 7 | K122: 否
A123: 202312230401 | B123: 红花岗区人民医院 | C123: 骨外科医师02 | D123: 1 | E123: 68.00 | F123: 13.60 | G123: 65.67 | H123: 52.54 | I123: 66.14 | J123: 8 | K123: 否
A124: 202312230410 | B124: 红花岗区人民医院 | C124: 骨外科医师02 | D124: 1 | E124: 65.00 | F124: 13.00 | G124: 61.33 | H124: 49.06 | I124: 62.06 | J124: 9 | K124: 否
A125: 202312230423 | B125: 红花岗区人民医院 | C125: 骨外科医师02 | D125: 1 | J125: 缺考 | K125: 否
A126: 202312230425 | B126: 红花岗区人民医院 | C126: 骨外科医师02 | D126: 1 | J126: 缺考 | K126: 否
A127: 202312230404 | B127: 红花岗区人民医院 | C127: 骨外科医师02 | D127: 1 | J127: 缺考 | K127: 否
A128: 202312230523 | B128: 红花岗区人民医院 | C128: 骨外科医师02 | D128: 1 | J128: 缺考 | K128: 否
A129: 202312230513 | B129: 红花岗区人民医院 | C129: 影像科医师03 | D129: 1 | E129: 70.00 | F129: 14.00 | G129: 84.33 | H129: 67.46 | I129: 81.46 | J129: 1 | K129: 是
A130: 202312230510 | B130: 红花岗区人民医院 | C130: 影像科医师03 | D130: 1 | E130: 63.00 | F130: 12.60 | G130: 73.33 | H130: 58.66 | I130: 71.26 | J130: 2 | K130: 否
A131: 202312230517 | B131: 红花岗区人民医院 | C131: 影像科医师03 | D131: 1 | E131: 70.00 | F131: 14.00 | G131: 67.00 | H131: 53.60 | I131: 67.60 | J131: 3 | K131: 否
A132: 202312230505 | B132: 红花岗区人民医院 | C132: 影像科医师03 | D132: 1 | E132: 59.00 | F132: 11.80 | G132: 67.33 | H132: 53.86 | I132: 65.66 | J132: 4 | K132: 否
A133: 202312230530 | B133: 红花岗区人民医院 | C133: 影像科医师03 | D133: 1 | J133: 缺考 | K133: 否
A134: 202312230604 | B134: 汇川区人民医院 | C134: 内科医师01 | D134: 3 | E134: 77.00 | F134: =E134*0.2 -> 15.40 | G134: 79.00 | H134: =G134*0.8 -> 63.20 | I134: =F134+H134 -> 78.60 | J134: 1 | K134: 是
A135: 202312230521 | B135: 汇川区人民医院 | C135: 内科医师01 | D135: 3 | E135: 65.00 | F135: 13.00 | G135: 81.33 | H135: 65.06 | I135: 78.06 | J135: 2 | K135: 是
A136: 202312230502 | B136: 汇川区人民医院 | C136: 内科医师01 | D136: 3 | E136: 71.00 | F136: 14.20 | G136: 78.67 | H136: 62.94 | I136: 77.14 | J136: 3 | K136: 是
A137: 202312230525 | B137: 汇川区人民医院 | C137: 内科医师01 | D137: 3 | E137: 68.00 | F137: 13.60 | G137: 76.00 | H137: 60.80 | I137: 74.40 | J137: 4 | K137: 否
A138: 202312230608 | B138: 汇川区人民医院 | C138: 内科医师01 | D138: 3 | E138: 65.00 | F138: 13.00 | G138: 76.67 | H138: 61.34 | I138: 74.34 | J138: 5 | K138: 否
A139: 202312230623 | B139: 汇川区人民医院 | C139: 内科医师01 | D139: 3 | E139: 72.00 | F139: 14.40 | G139: 74.33 | H139: 59.46 | I139: 73.86 | J139: 6 | K139: 否
A140: 202312230527 | B140: 汇川区人民医院 | C140: 内科医师01 | D140: 3 | E140: 69.00 | F140: 13.80 | G140: 74.00 | H140: 59.20 | I140: 73.00 | J140: 7 | K140: 否
A141: 202312230617 | B141: 汇川区人民医院 | C141: 内科医师01 | D141: 3 | E141: 65.00 | F141: 13.00 | G141: 74.33 | H141: 59.46 | I141: 72.46 | J141: 8 | K141: 否
A142: 202312230511 | B142: 汇川区人民医院 | C142: 内科医师01 | D142: 3 | J142: 缺考 | K142: 否
A143: 202312230606 | B143: 汇川区人民医院 | C143: 内科医师01 | D143: 3 | J143: 缺考 | K143: 否
A144: 202312230619 | B144: 汇川区人民医院 | C144: 普外科医师02 | D144: 1 | E144: 74.00 | F144: =E144*0.2 -> 14.80 | G144: 78.33 | H144: =G144*0.8 -> 62.66 | I144: =F144+H144 -> 77.46 | J144: 1 | K144: 是
A145: 202312230630 | B145: 汇川区人民医院 | C145: 普外科医师02 | D145: 1 | E145: 71.00 | F145: =E145*0.2 -> 14.20 | G145: 77.33 | H145: =G145*0.8 -> 61.86 | I145: =F145+H145 -> 76.06 | J145: 2 | K145: 否
A146: 202312230611 | B146: 汇川区人民医院 | C146: 普外科医师02 | D146: 1 | E146: 68.00 | F146: =E146*0.2 -> 13.60 | G146: 74.67 | H146: =G146*0.8 -> 59.74 | I146: =F146+H146 -> 73.34 | J146: 3 | K146: 否
A147: 202312230621 | B147: 汇川区人民医院 | C147: 普外科医师02 | D147: 1 | E147: 64.00 | F147: =E147*0.2 -> 12.80 | G147: 74.67 | H147: =G147*0.8 -> 59.74 | I147: =F147+H147 -> 72.54 | J147: 4 | K147: 否
A148: 202312230615 | B148: 汇川区人民医院 | C148: 普外科医师02 | D148: 1 | E148: 62.00 | F148: =E148*0.2 -> 12.40 | G148: 73.67 | H148: =G148*0.8 -> 58.94 | I148: =F148+H148 -> 71.34 | J148: 5 | K148: 否
A149: 202312230626 | B149: 汇川区人民医院 | C149: 普外科医师02 | D149: 1 | J149: 缺考 | K149: 否
A150: 202312230620 | B150: 汇川区人民医院 | C150: 普外科医师02 | D150: 1 | J150: 缺考 | K150: 否
A151: 202312230609 | B151: 汇川区人民医院 | C151: 普外科医师02 | D151: 1 | J151: 缺考 | K151: 否
A152: 202312230514 | B152: 汇川区人民医院 | C152: 妇产科医师03 | D152: 1 | E152: 76.00 | F152: =E152*0.2 -> 15.20 | G152: 81.33 | H152: =G152*0.8 -> 65.06 | I152: =F152+H152 -> 80.26 | J152: 1 | K152: 是
A153: 202312230516 | B153: 汇川区人民医院 | C153: 妇产科医师03 | D153: 1 | E153: 77.00 | F153: 15.40 | G153: 75.33 | H153: 60.26 | I153: 75.66 | J153: 2 | K153: 否
A154: 202312230526 | B154: 汇川区人民医院 | C154: 妇产科医师03 | D154: 1 | E154: 65.00 | F154: 13.00 | G154: 77.33 | H154: 61.86 | I154: 74.86 | J154: 3 | K154: 否
A155: 202312230507 | B155: 汇川区人民医院 | C155: 妇产科医师03 | D155: 1 | E155: 64.00 | F155: 12.80 | G155: 76.67 | H155: 61.34 | I155: 74.14 | J155: 4 | K155: 否
A156: 202312230528 | B156: 汇川区人民医院 | C156: 妇产科医师03 | D156: 1 | E156: 73.00 | F156: 14.60 | G156: 74.33 | H156: 59.46 | I156: 74.06 | J156: 5 | K156: 否
A157: 202312230504 | B157: 汇川区人民医院 | C157: 妇产科医师03 | D157: 1 | E157: 74.00 | F157: 14.80 | G157: 73.67 | H157: 58.94 | I157: 73.74 | J157: 6 | K157: 否
A158: 202312230508 | B158: 汇川区人民医院 | C158: 妇产科医师03 | D158: 1 | E158: 79.00 | F158: 15.80 | G158: 72.33 | H158: 57.86 | I158: 73.66 | J158: 7 | K158: 否
A159: 202312230512 | B159: 汇川区人民医院 | C159: 妇产科医师03 | D159: 1 | E159: 68.00 | F159: 13.60 | G159: 74.33 | H159: 59.46 | I159: 73.06 | J159: 8 | K159: 否
A160: 202312230501 | B160: 汇川区人民医院 | C160: 妇产科医师03 | D160: 1 | E160: 65.00 | F160: 13.00 | G160: 71.00 | H160: 56.80 | I160: 69.80 | J160: 9 | K160: 否
A161: 202312230519 | B161: 汇川区人民医院 | C161: 妇产科医师03 | D161: 1 | J161: 缺考 | K161: 否
A162: 202312230522 | B162: 汇川区人民医院 | C162: 妇产科医师03 | D162: 1 | J162: 缺考 | K162: 否
A163: 202312230503 | B163: 汇川区人民医院 | C163: 妇产科医师03 | D163: 1 | J163: 缺考 | K163: 否
A164: 202312230506 | B164: 汇川区人民医院 | C164: 妇产科医师03 | D164: 1 | J164: 缺考 | K164: 否
A165: 202312230515 | B165: 汇川区人民医院 | C165: 急诊科医师04 | D165: 1 | E165: 72.00 | F165: =E165*0.2 -> 14.40 | G165: 79.00 | H165: =G165*0.8 -> 63.20 | I165: =F165+H165 -> 77.60 | J165: 1 | K165: 是
A166: 202312230509 | B166: 汇川区人民医院 | C166: 急诊科医师04 | D166: 1 | E166: 69.00 | F166: =E166*0.2 -> 13.80 | G166: 75.33 | H166: =G166*0.8 -> 60.26 | I166: =F166+H166 -> 74.06 | J166: 2 | K166: 否
A167: 202312230529 | B167: 汇川区人民医院 | C167: 急诊科医师04 | D167: 1 | J167: 缺考 | K167: 否
A168: 202312230622 | B168: 汇川区人民医院 | C168: 心电图医师07 | D168: 1 | E168: 62.00 | F168: =E168*0.2 -> 12.40 | G168: 74.67 | H168: =G168*0.8 -> 59.74 | I168: =F168+H168 -> 72.14 | J168: 1 | K168: 是
A169: 202312230602 | B169: 汇川区人民医院 | C169: 心电图医师07 | D169: 1 | E169: 67.00 | F169: =E169*0.2 -> 13.40 | G169: 72.00 | H169: =G169*0.8 -> 57.60 | I169: =F169+H169 -> 71.00 | J169: 2 | K169: 否
A170: 202312230605 | B170: 汇川区人民医院 | C170: 心电图医师07 | D170: 1 | J170: 缺考 | K170: 否
A171: 202312230629 | B171: 汇川区中医医院 | C171: 中医医师01 | D171: 1 | E171: 84.00 | F171: =E171*0.2 -> 16.80 | G171: 80.00 | H171: =G171*0.8 -> 64.00 | I171: =F171+H171 -> 80.80 | J171: 1 | K171: 是
A172: 202312230628 | B172: 汇川区中医医院 | C172: 中医医师01 | D172: 1 | E172: 65.00 | F172: 13.00 | G172: 78.67 | H172: 62.94 | I172: 75.94 | J172: 2 | K172: 否
A173: 202312230625 | B173: 汇川区中医医院 | C173: 中医医师01 | D173: 1 | E173: 74.00 | F173: 14.80 | G173: 76.00 | H173: 60.80 | I173: 75.60 | J173: 3 | K173: 否
A174: 202312230613 | B174: 汇川区中医医院 | C174: 中医医师01 | D174: 1 | E174: 74.00 | F174: 14.80 | G174: 72.00 | H174: 57.60 | I174: 72.40 | J174: 4 | K174: 否
A175: 202312230624 | B175: 播州区人民医院 | C175: 影像医师01 | D175: 1 | E175: 62.00 | F175: 12.40 | G175: 77.33 | H175: 61.86 | I175: 74.26 | J175: 1 | K175: 是
A176: 202312230601 | B176: 播州区人民医院 | C176: 影像医师01 | D176: 1 | J176: 缺考 | K176: 否
A177: 202312230610 | B177: 播州区人民医院 | C177: 财务科工作人员02 | D177: 1 | E177: 82.00 | F177: =E177*0.2 -> 16.40 | G177: 73.00 | H177: =G177*0.8 -> 58.40 | I177: =F177+H177 -> 74.80 | J177: 1 | K177: 是
A178: 202312230618 | B178: 播州区中医院 | C178: 外科医师01 | D178: 2 | E178: 78.00 | F178: 15.60 | G178: 80.67 | H178: 64.54 | I178: 80.14 | J178: 1 | K178: 是
A179: 202312230616 | B179: 播州区中医院 | C179: 外科医师01 | D179: 2 | E179: 69.00 | F179: 13.80 | G179: 80.00 | H179: 64.00 | I179: 77.80 | J179: 2 | K179: 是
A180: 202312230612 | B180: 播州区中医院 | C180: 外科医师01 | D180: 2 | E180: 69.00 | F180: 13.80 | G180: 76.67 | H180: 61.34 | I180: 75.14 | J180: 3 | K180: 否
A181: 202312230607 | B181: 播州区中医院 | C181: 外科医师01 | D181: 2 | E181: 66.00 | F181: 13.20 | G181: 76.33 | H181: 61.06 | I181: 74.26 | J181: 4 | K181: 否
A182: 202312230603 | B182: 播州区中医院 | C182: 外科医师01 | D182: 2 | E182: 74.00 | F182: 14.80 | G182: 73.00 | H182: 58.40 | I182: 73.20 | J182: 5 | K182: 否
A183: 202312230627 | B183: 播州区中医院 | C183: 外科医师01 | D183: 2 | J183: 缺考 | K183: 否
A184: 202312230614 | B184: 播州区茅栗镇卫生院 | C184: 临床医师01 | D184: 1 | E184: 64.00 | F184: =E184*0.2 -> 12.80 | G184: 84.67 | H184: =G184*0.8 -> 67.74 | I184: =F184+H184 -> 80.54 | J184: 1 | K184: 是
A185: 202312230727 | B185: 播州区茅栗镇卫生院 | C185: 临床医师01 | D185: 1 | J185: 缺考 | K185: 否
A186: 202312230710 | B186: 播州区三岔镇卫生院 | C186: 口腔医师01 | D186: 1 | E186: 68.00 | F186: =E186*0.2 -> 13.60 | G186: 70.67 | H186: =G186*0.8 -> 56.54 | I186: =F186+H186 -> 70.14 | J186: 1 | K186: 是
A187: 202312230703 | B187: 播州区三岔镇卫生院 | C187: 中医理疗师02 | D187: 1 | E187: 68.00 | F187: =E187*0.2 -> 13.60 | G187: 78.00 | H187: 62.40 | I187: 76.00 | J187: 1 | K187: 是
A188: 202312230706 | B188: 桐梓县人民医院 | C188: 心血管内科医师01 | D188: 2 | E188: 80.00 | F188: =E188*0.2 -> 16.00 | G188: 74.60 | H188: 59.68 | I188: 75.68 | J188: 1 | K188: 是
A189: 202312230711 | B189: 桐梓县人民医院 | C189: 心血管内科医师01 | D189: 2 | E189: 67.00 | F189: 13.40 | G189: 77.10 | H189: 61.68 | I189: 75.08 | J189: 2 | K189: 是
A190: 202312230725 | B190: 桐梓县人民医院 | C190: 心血管内科医师01 | D190: 2 | E190: 71.00 | F190: 14.20 | G190: 74.50 | H190: 59.60 | I190: 73.80 | J190: 3 | K190: 否
A191: 202312230716 | B191: 桐梓县人民医院 | C191: 神经内科医师02 | D191: 1 | E191: 76.00 | F191: 15.20 | G191: 79.40 | H191: 63.52 | I191: 78.72 | J191: 1 | K191: 是
A192: 202312230719 | B192: 桐梓县人民医院 | C192: 神经内科医师02 | D192: 1 | E192: 66.00 | F192: 13.20 | G192: 80.60 | H192: 64.48 | I192: 77.68 | J192: 2 | K192: 否
A193: 202312230729 | B193: 桐梓县人民医院 | C193: 神经内科医师02 | D193: 1 | E193: 74.00 | F193: 14.80 | G193: 78.10 | H193: 62.48 | I193: 77.28 | J193: 3 | K193: 否
A194: 202312230721 | B194: 桐梓县人民医院 | C194: 神经内科医师02 | D194: 1 | E194: 71.00 | F194: 14.20 | G194: 72.40 | H194: 57.92 | I194: 72.12 | J194: 4 | K194: 否
A195: 202312230709 | B195: 桐梓县人民医院 | C195: 普通外科医生03 | D195: 1 | E195: 71.00 | F195: 14.20 | G195: 75.60 | H195: 60.48 | I195: 74.68 | J195: 1 | K195: 是
A196: 202312230728 | B196: 桐梓县人民医院 | C196: 普通外科医生03 | D196: 1 | J196: 缺考 | K196: 否
A197: 202312230724 | B197: 桐梓县人民医院 | C197: 超声科医师04 | D197: 2 | E197: 75.00 | F197: 15.00 | G197: 77.10 | H197: =G197*0.8 -> 61.68 | I197: =F197+H197 -> 76.68 | J197: 1 | K197: 是
A198: 202312230713 | B198: 桐梓县人民医院 | C198: 超声科医师04 | D198: 2 | E198: 63.00 | F198: 12.60 | G198: 72.00 | H198: 57.60 | I198: 70.20 | J198: 2 | K198: 是
A199: 202312230702 | B199: 桐梓县人民医院 | C199: 急诊科医生05 | D199: 1 | E199: 69.00 | F199: 13.80 | G199: 71.50 | H199: 57.20 | I199: 71.00 | J199: 1 | K199: 是
A200: 202312230708 | B200: 桐梓县中医院 | C200: 临床医师09 | D200: 1 | E200: 70.00 | F200: 14.00 | G200: 81.60 | H200: 65.28 | I200: 79.28 | J200: 1 | K200: 是
... 163 more rows
